[Event "GrandPrix_29.05"]
[Site "Chess.com"]
[Date "2020.05.29"]
[Round "7"]
[White "SavelievAlexei"]
[Black "hypert"]
[Result "0-1"]
[WhiteElo "2216"]
[BlackElo "2185"]
[TimeControl "600+2"]
[EndTime "12:17:25 PDT"]
[Termination "hypert won by resignation"]

1. e4 {[%clk 0:10:01.9]} 1... c5 {[%clk 0:10:00.6]} 2. Nf3 {[%clk 0:10:02.5]}
2... Nc6 {[%clk 0:10:01.7]} 3. Nc3 {[%clk 0:10:02.3]} 3... e5 {[%clk 0:09:58.5]}
4. Bc4 {[%clk 0:10:02.5]} 4... Be7 {[%clk 0:09:57.1]} 5. d3 {[%clk 0:10:01.4]}
5... d6 {[%clk 0:09:57.2]} 6. O-O {[%clk 0:10:00.8]} 6... Nf6 {[%clk 0:09:57.5]}
7. Ng5 {[%clk 0:10:01.9]} 7... O-O {[%clk 0:09:58.3]} 8. f4 {[%clk 0:10:03.3]}
8... Bg4 {[%clk 0:09:53.5]} 9. Qe1 {[%clk 0:10:03.7]} 9... h6 {[%clk 0:09:41.9]}
10. Nf3 {[%clk 0:09:48.7]} 10... Nd4 {[%clk 0:09:42.5]} 11. Qf2 {[%clk
0:09:44.5]} 11... Bxf3 {[%clk 0:09:33.5]} 12. gxf3 {[%clk 0:09:44.8]} 12... Nh5
{[%clk 0:09:35]} 13. fxe5 {[%clk 0:09:27.5]} 13... dxe5 {[%clk 0:09:36.9]} 14.
f4 {[%clk 0:09:28.4]} 14... Nxf4 {[%clk 0:09:10.7]} 15. Bxf4 {[%clk 0:09:30.3]}
15... exf4 {[%clk 0:09:10.5]} 16. Qxf4 {[%clk 0:09:24.3]} 16... Nxc2 {[%clk
0:07:55]} 17. Rac1 {[%clk 0:08:40.3]} 17... Bg5 {[%clk 0:07:32]} 18. Bxf7+
{[%clk 0:08:26.2]} 18... Kh8 {[%clk 0:07:31.5]} 19. Qf5 {[%clk 0:08:25.6]} 19...
Bxc1 {[%clk 0:06:43]} 20. Rxc1 {[%clk 0:08:27.5]} 20... Qxd3 {[%clk 0:06:13.7]}
21. Kh1 {[%clk 0:08:09.6]} 21... Nd4 {[%clk 0:05:58.4]} 22. Qg6 {[%clk
0:08:07.5]} 22... Qf3+ {[%clk 0:05:54.1]} 0-1

[Event "GrandPrix_29.05"]
[Site "Chess.com"]
[Date "2020.05.29"]
[Round "7"]
[White "KacperKacprzak"]
[Black "payto1"]
[Result "0-1"]
[WhiteElo "2043"]
[BlackElo "2155"]
[TimeControl "600+2"]
[EndTime "12:17:26 PDT"]
[Termination "payto1 won by resignation"]

1. e4 {[%clk 0:09:57.1]} 1... Nc6 {[%clk 0:10:00.1]} 2. Nf3 {[%clk 0:09:49.3]}
2... d6 {[%clk 0:10:00.6]} 3. d4 {[%clk 0:09:47.5]} 3... Nf6 {[%clk 0:10:00.9]}
4. Nc3 {[%clk 0:09:46]} 4... g6 {[%clk 0:10:01.3]} 5. h3 {[%clk 0:09:42.4]} 5...
Bg7 {[%clk 0:10:01.8]} 6. Be3 {[%clk 0:09:40.6]} 6... O-O {[%clk 0:10:01.4]} 7.
Qd2 {[%clk 0:09:39.7]} 7... e5 {[%clk 0:09:59.5]} 8. d5 {[%clk 0:09:39.7]} 8...
Ne7 {[%clk 0:09:59.5]} 9. Bh6 {[%clk 0:09:36.4]} 9... Bd7 {[%clk 0:10:00]} 10.
g4 {[%clk 0:09:34.8]} 10... a6 {[%clk 0:09:29.7]} 11. O-O-O {[%clk 0:09:28.2]}
11... b5 {[%clk 0:09:30.2]} 12. Bxg7 {[%clk 0:09:22.8]} 12... Kxg7 {[%clk
0:09:30.8]} 13. Bd3 {[%clk 0:09:11.7]} 13... c6 {[%clk 0:09:24.1]} 14. dxc6
{[%clk 0:09:10.3]} 14... Bxc6 {[%clk 0:09:26]} 15. g5 {[%clk 0:09:08.7]} 15...
Nh5 {[%clk 0:09:26.7]} 16. Bf1 {[%clk 0:08:57.7]} 16... b4 {[%clk 0:08:48]} 17.
Nd5 {[%clk 0:08:55.6]} 17... Bxd5 {[%clk 0:08:48.3]} 18. exd5 {[%clk 0:08:57.5]}
18... Qa5 {[%clk 0:08:43.3]} 19. Bc4 {[%clk 0:08:24.2]} 19... Rac8 {[%clk
0:08:36.7]} 20. Bb3 {[%clk 0:08:23.5]} 20... Qb5 {[%clk 0:08:35.2]} 21. Rhe1
{[%clk 0:08:14]} 21... a5 {[%clk 0:08:28.5]} 22. Nd4 {[%clk 0:07:44.7]} 22...
exd4 {[%clk 0:07:54.9]} 23. Qxd4+ {[%clk 0:07:46.6]} 23... Kg8 {[%clk
0:07:55.3]} 24. Rxe7 {[%clk 0:07:46.4]} 24... a4 {[%clk 0:07:55.2]} 25. Rd3
{[%clk 0:07:23.7]} 25... axb3 {[%clk 0:07:50.7]} 26. axb3 {[%clk 0:07:25.6]}
26... Ng7 {[%clk 0:07:46.7]} 27. Rf3 {[%clk 0:07:21.8]} 27... Nf5 {[%clk
0:07:32.8]} 28. Rxf5 {[%clk 0:07:16.8]} 28... gxf5 {[%clk 0:07:29.1]} 29. h4
{[%clk 0:07:14.2]} 29... Rfe8 {[%clk 0:07:28.6]} 30. Qf6 {[%clk 0:07:08.9]}
30... Qf1+ {[%clk 0:07:27.8]} 0-1

[Event "GrandPrix_29.05"]
[Site "Chess.com"]
[Date "2020.05.29"]
[Round "7"]
[White "Haykos"]
[Black "Bestromano"]
[Result "1/2-1/2"]
[WhiteElo "2176"]
[BlackElo "2125"]
[TimeControl "600+2"]
[EndTime "12:17:28 PDT"]
[Termination "Game drawn by agreement"]

1. e4 {[%clk 0:10:01.9]} 1... c5 {[%clk 0:10:00.6]} 2. Nf3 {[%clk 0:10:02.9]}
2... g6 {[%clk 0:10:02.2]} 3. d4 {[%clk 0:10:02.2]} 3... cxd4 {[%clk 0:10:04.1]}
4. Nxd4 {[%clk 0:10:03.4]} 4... Nc6 {[%clk 0:10:05.2]} 5. Nc3 {[%clk 0:10:05.3]}
5... Bg7 {[%clk 0:10:06.1]} 6. Be3 {[%clk 0:10:07]} 6... Nf6 {[%clk 0:10:07.6]}
7. h3 {[%clk 0:09:59.7]} 7... O-O {[%clk 0:10:07.7]} 8. Nf3 {[%clk 0:09:58]}
8... Qa5 {[%clk 0:09:59.3]} 9. Qd2 {[%clk 0:09:53.8]} 9... d6 {[%clk 0:10:00.7]}
10. Bc4 {[%clk 0:09:53.7]} 10... Be6 {[%clk 0:09:55.3]} 11. Bb3 {[%clk
0:09:54.1]} 11... Bxb3 {[%clk 0:09:46.2]} 12. cxb3 {[%clk 0:09:55.3]} 12... Rac8
{[%clk 0:09:43.4]} 13. O-O {[%clk 0:09:56.3]} 13... Rfe8 {[%clk 0:09:32.1]} 14.
a3 {[%clk 0:09:54.6]} 14... Qh5 {[%clk 0:09:25.3]} 15. b4 {[%clk 0:09:53]} 15...
b6 {[%clk 0:08:54.6]} 16. Rfe1 {[%clk 0:09:39.2]} 16... Nd7 {[%clk 0:08:44.6]}
17. Qe2 {[%clk 0:08:57.7]} 17... Nce5 {[%clk 0:08:33.7]} 18. Nxe5 {[%clk
0:08:58.8]} 18... Qxe2 {[%clk 0:08:35.1]} 19. Rxe2 {[%clk 0:09:00]} 19... Nxe5
{[%clk 0:08:36.4]} 20. Bd4 {[%clk 0:09:01.3]} 20... Rc4 {[%clk 0:07:54.9]} 21.
Be3 {[%clk 0:08:09.3]} 21... Kf8 {[%clk 0:07:17.7]} 22. Kf1 {[%clk 0:08:05.8]}
22... Rec8 {[%clk 0:07:16.8]} 23. Rd1 {[%clk 0:08:04.5]} 23... Nd7 {[%clk
0:06:58.6]} 24. Nb5 {[%clk 0:07:51.8]} 24... a6 {[%clk 0:06:52.9]} 25. Nd4
{[%clk 0:07:50.4]} 1/2-1/2

[Event "GrandPrix_29.05"]
[Site "Chess.com"]
[Date "2020.05.29"]
[Round "7"]
[White "ZEN-22"]
[Black "Logman74"]
[Result "1-0"]
[WhiteElo "2127"]
[BlackElo "2116"]
[TimeControl "600+2"]
[EndTime "12:18:00 PDT"]
[Termination "ZEN-22 won by resignation"]

1. e4 {[%clk 0:09:10.2]} 1... c5 {[%clk 0:09:58.1]} 2. b4 {[%clk 0:09:01.5]}
2... cxb4 {[%clk 0:09:57.4]} 3. a3 {[%clk 0:09:00.7]} 3... bxa3 {[%clk
0:09:55.4]} 4. Nxa3 {[%clk 0:08:58.8]} 4... Nf6 {[%clk 0:09:53.7]} 5. e5 {[%clk
0:08:53.6]} 5... Nd5 {[%clk 0:09:51.3]} 6. Bc4 {[%clk 0:08:55.1]} 6... e6 {[%clk
0:09:50.9]} 7. Bxd5 {[%clk 0:08:48.4]} 7... exd5 {[%clk 0:09:50.3]} 8. Nb5
{[%clk 0:08:44.6]} 8... Bc5 {[%clk 0:09:48.2]} 9. d4 {[%clk 0:08:44.2]} 9...
Bb4+ {[%clk 0:09:45.3]} 10. c3 {[%clk 0:08:45.1]} 10... Be7 {[%clk 0:09:46.2]}
11. Ba3 {[%clk 0:08:32.9]} 11... O-O {[%clk 0:09:45.7]} 12. Nf3 {[%clk 0:08:17]}
12... Bxa3 {[%clk 0:09:12.6]} 13. Rxa3 {[%clk 0:08:15.2]} 13... d6 {[%clk
0:09:08.4]} 14. Nxd6 {[%clk 0:08:14.9]} 14... Bg4 {[%clk 0:09:00.8]} 15. h3
{[%clk 0:08:13.9]} 15... Be6 {[%clk 0:08:47.2]} 16. Nxb7 {[%clk 0:08:03.9]}
16... Qc7 {[%clk 0:08:45.2]} 17. Nc5 {[%clk 0:07:56.1]} 17... Nd7 {[%clk
0:08:43.9]} 18. Nxe6 {[%clk 0:07:52.3]} 18... fxe6 {[%clk 0:08:42.1]} 19. O-O
{[%clk 0:07:53.7]} 19... a5 {[%clk 0:08:40.3]} 20. Ng5 {[%clk 0:07:52.5]} 20...
Ra6 {[%clk 0:08:22.7]} 21. Qd3 {[%clk 0:07:51.5]} 21... Rf5 {[%clk 0:08:03.5]}
22. Qxa6 {[%clk 0:07:46.2]} 22... Rxg5 {[%clk 0:08:03.6]} 23. Qxe6+ {[%clk
0:07:46.6]} 23... Kf8 {[%clk 0:07:58.8]} 24. Qxd5 {[%clk 0:07:31.4]} 24... Rg6
{[%clk 0:07:46.8]} 25. Qxa5 {[%clk 0:07:29.8]} 25... Nb6 {[%clk 0:07:35.9]} 26.
f4 {[%clk 0:07:18.7]} 26... Qb7 {[%clk 0:07:35.1]} 27. Rf2 {[%clk 0:07:17.9]}
27... h5 {[%clk 0:07:24.4]} 28. Rb3 {[%clk 0:07:16.4]} 28... Kg8 {[%clk
0:07:23]} 29. f5 {[%clk 0:07:13.2]} 29... Rc6 {[%clk 0:07:17.2]} 30. d5 {[%clk
0:07:07.4]} 30... Rh6 {[%clk 0:07:17.2]} 31. d6 {[%clk 0:06:57.5]} 1-0

[Event "GrandPrix_29.05"]
[Site "Chess.com"]
[Date "2020.05.29"]
[Round "7"]
[White "PeshkaTheGreat"]
[Black "Korona_91"]
[Result "0-1"]
[WhiteElo "2136"]
[BlackElo "2088"]
[TimeControl "600+2"]
[EndTime "12:18:12 PDT"]
[Termination "Korona_91 won by checkmate"]

1. e4 {[%clk 0:09:59.6]} 1... e6 {[%clk 0:09:59.3]} 2. d4 {[%clk 0:10:00]} 2...
d5 {[%clk 0:10:00.3]} 3. Nc3 {[%clk 0:10:01.5]} 3... Bb4 {[%clk 0:10:00.8]} 4.
a3 {[%clk 0:10:02]} 4... Bxc3+ {[%clk 0:10:00.7]} 5. bxc3 {[%clk 0:10:03.9]}
5... Nf6 {[%clk 0:10:02.2]} 6. e5 {[%clk 0:10:01.5]} 6... Nfd7 {[%clk
0:09:57.1]} 7. Qg4 {[%clk 0:10:00]} 7... Kf8 {[%clk 0:09:50.8]} 8. a4 {[%clk
0:09:59.7]} 8... c5 {[%clk 0:09:50.2]} 9. f4 {[%clk 0:09:54.5]} 9... Nc6 {[%clk
0:09:46]} 10. Nf3 {[%clk 0:09:55]} 10... Qa5 {[%clk 0:09:31]} 11. Bd2 {[%clk
0:09:45.7]} 11... Qb6 {[%clk 0:09:23.4]} 12. a5 {[%clk 0:07:55.3]} 12... Qb2
{[%clk 0:09:10.5]} 13. Rc1 {[%clk 0:07:24.3]} 13... cxd4 {[%clk 0:09:09.4]} 14.
cxd4 {[%clk 0:07:25]} 14... Nxd4 {[%clk 0:09:07]} 15. Bd3 {[%clk 0:07:13.3]}
15... Nc5 {[%clk 0:08:38.2]} 16. Be3 {[%clk 0:04:45.3]} 16... Nxd3+ {[%clk
0:08:10.3]} 17. cxd3 {[%clk 0:04:45.4]} 17... Qe2# {[%clk 0:08:10]} 0-1

[Event "GrandPrix_29.05"]
[Site "Chess.com"]
[Date "2020.05.29"]
[Round "7"]
[White "jafarlib"]
[Black "Thor736"]
[Result "0-1"]
[WhiteElo "2108"]
[BlackElo "2063"]
[TimeControl "600+2"]
[EndTime "12:18:50 PDT"]
[Termination "Thor736 won by resignation"]

1. e4 {[%clk 0:10:01.9]} 1... c5 {[%clk 0:10:00.4]} 2. Nf3 {[%clk 0:10:01.8]}
2... d6 {[%clk 0:10:01.9]} 3. Bb5+ {[%clk 0:10:02.1]} 3... Nd7 {[%clk
0:10:02.3]} 4. O-O {[%clk 0:10:01.8]} 4... a6 {[%clk 0:10:03]} 5. Bxd7+ {[%clk
0:10:02.3]} 5... Bxd7 {[%clk 0:10:04.1]} 6. c3 {[%clk 0:10:03.2]} 6... Nf6
{[%clk 0:10:04.8]} 7. e5 {[%clk 0:10:04]} 7... dxe5 {[%clk 0:10:05.5]} 8. Nxe5
{[%clk 0:10:05.9]} 8... e6 {[%clk 0:10:02.6]} 9. d4 {[%clk 0:10:06.7]} 9... cxd4
{[%clk 0:09:50.9]} 10. cxd4 {[%clk 0:10:08.6]} 10... Be7 {[%clk 0:09:46.8]} 11.
Nc3 {[%clk 0:10:08.8]} 11... O-O {[%clk 0:09:47.5]} 12. Qf3 {[%clk 0:10:06.5]}
12... Qb6 {[%clk 0:09:23.8]} 13. Rd1 {[%clk 0:09:57.5]} 13... Rfd8 {[%clk
0:09:06.5]} 14. d5 {[%clk 0:09:51.9]} 14... exd5 {[%clk 0:07:13.6]} 15. Nxd5
{[%clk 0:09:31.2]} 15... Nxd5 {[%clk 0:07:07]} 16. Qxf7+ {[%clk 0:08:50.8]}
16... Kh8 {[%clk 0:07:08]} 17. Rxd5 {[%clk 0:07:54.9]} 17... Be6 {[%clk
0:07:04]} 18. Rxd8+ {[%clk 0:07:54.2]} 18... Rxd8 {[%clk 0:06:40.7]} 19. Qh5
{[%clk 0:07:32]} 19... Bf6 {[%clk 0:06:16.6]} 20. Bf4 {[%clk 0:06:44.1]} 20...
Qxb2 {[%clk 0:06:09.1]} 21. Rd1 {[%clk 0:06:38.4]} 21... Rxd1+ {[%clk
0:06:03.3]} 22. Qxd1 {[%clk 0:06:40.3]} 22... Bxe5 {[%clk 0:05:57.5]} 0-1

[Event "GrandPrix_29.05"]
[Site "Chess.com"]
[Date "2020.05.29"]
[Round "7"]
[White "nurgyulsalimova"]
[Black "rusuvlad95"]
[Result "0-1"]
[WhiteElo "2144"]
[BlackElo "2112"]
[TimeControl "600+2"]
[EndTime "12:19:16 PDT"]
[Termination "rusuvlad95 won by resignation"]

1. d4 {[%clk 0:10:01.9]} 1... Nf6 {[%clk 0:10:00.8]} 2. Nf3 {[%clk 0:10:00.1]}
2... e6 {[%clk 0:10:01.7]} 3. g3 {[%clk 0:10:01]} 3... c5 {[%clk 0:10:02.4]} 4.
Bg2 {[%clk 0:10:01.9]} 4... cxd4 {[%clk 0:09:45.5]} 5. Nxd4 {[%clk 0:09:48.9]}
5... d5 {[%clk 0:09:43]} 6. O-O {[%clk 0:09:49.6]} 6... e5 {[%clk 0:09:37.1]} 7.
Nb3 {[%clk 0:09:49.4]} 7... a5 {[%clk 0:09:33.7]} 8. a4 {[%clk 0:09:44.6]} 8...
Be6 {[%clk 0:09:28.7]} 9. Nc3 {[%clk 0:09:40.6]} 9... Nc6 {[%clk 0:09:29.3]} 10.
Bg5 {[%clk 0:09:37.1]} 10... d4 {[%clk 0:09:27.5]} 11. Nb5 {[%clk 0:09:37.2]}
11... Be7 {[%clk 0:09:26]} 12. e3 {[%clk 0:09:36.4]} 12... Bxb3 {[%clk
0:09:23.5]} 13. cxb3 {[%clk 0:09:36.9]} 13... d3 {[%clk 0:09:23]} 14. Bxf6
{[%clk 0:08:55.3]} 14... Bxf6 {[%clk 0:09:20.6]} 15. Qd2 {[%clk 0:08:55]} 15...
Qd7 {[%clk 0:09:19.2]} 16. Rfd1 {[%clk 0:08:51.3]} 16... Rd8 {[%clk 0:09:17.5]}
17. Rac1 {[%clk 0:08:35.5]} 17... O-O {[%clk 0:09:17.4]} 18. Be4 {[%clk
0:08:28.1]} 18... Qe6 {[%clk 0:08:25]} 19. Bxd3 {[%clk 0:08:05.4]} 19... e4
{[%clk 0:08:22.6]} 20. Bc4 {[%clk 0:07:13.2]} 20... Rxd2 {[%clk 0:08:22.8]} 21.
Bxe6 {[%clk 0:07:13.9]} 21... Rxd1+ {[%clk 0:08:22.9]} 22. Rxd1 {[%clk
0:07:15.8]} 22... fxe6 {[%clk 0:08:24.2]} 23. Rd7 {[%clk 0:07:17.1]} 23... Rf7
{[%clk 0:08:03.4]} 24. Rd2 {[%clk 0:07:05.1]} 24... Be5 {[%clk 0:08:01.2]} 25.
Na3 {[%clk 0:06:59.7]} 25... g5 {[%clk 0:07:56.2]} 26. Nc4 {[%clk 0:07:00.3]}
26... Kg7 {[%clk 0:07:53.2]} 27. Kg2 {[%clk 0:06:52.5]} 27... h5 {[%clk
0:07:41.2]} 28. h3 {[%clk 0:06:52.7]} 28... h4 {[%clk 0:07:36.6]} 29. g4 {[%clk
0:06:53.1]} 29... Bc7 {[%clk 0:07:20.1]} 30. Na3 {[%clk 0:06:45.6]} 30... Nb4
{[%clk 0:07:14.4]} 31. Nb5 {[%clk 0:06:43.1]} 31... Be5 {[%clk 0:07:13.9]} 32.
Nd4 {[%clk 0:06:36]} 32... Nd3 {[%clk 0:07:08.6]} 33. Nxe6+ {[%clk 0:06:36.5]}
33... Kf6 {[%clk 0:06:52.9]} 34. Nd4 {[%clk 0:06:34.6]} 34... Rd7 {[%clk
0:06:50.9]} 35. f3 {[%clk 0:06:33.4]} 35... Bxd4 {[%clk 0:06:43.2]} 36. exd4
{[%clk 0:06:34.3]} 36... Rxd4 {[%clk 0:06:44.1]} 0-1

[Event "GrandPrix_29.05"]
[Site "Chess.com"]
[Date "2020.05.29"]
[Round "7"]
[White "sergoy"]
[Black "Zakaryan_David"]
[Result "1-0"]
[WhiteElo "2304"]
[BlackElo "1465"]
[TimeControl "600+2"]
[EndTime "12:19:34 PDT"]
[Termination "sergoy won by checkmate"]

1. d4 {[%clk 0:10:01.2]} 1... Nf6 {[%clk 0:09:58.8]} 2. c4 {[%clk 0:10:02.3]}
2... g6 {[%clk 0:09:58.3]} 3. Nc3 {[%clk 0:10:02.4]} 3... d5 {[%clk 0:09:57.2]}
4. Nf3 {[%clk 0:10:03.4]} 4... Bg7 {[%clk 0:09:56.4]} 5. Qb3 {[%clk 0:10:04.2]}
5... dxc4 {[%clk 0:09:32.9]} 6. Qxc4 {[%clk 0:10:06.1]} 6... O-O {[%clk
0:09:30]} 7. e4 {[%clk 0:10:04.6]} 7... a6 {[%clk 0:09:24.2]} 8. e5 {[%clk
0:10:03]} 8... b5 {[%clk 0:09:19.7]} 9. Qb3 {[%clk 0:10:03.9]} 9... Nfd7 {[%clk
0:09:17.1]} 10. h4 {[%clk 0:10:04]} 10... c5 {[%clk 0:09:14.6]} 11. e6 {[%clk
0:10:05.2]} 11... c4 {[%clk 0:08:47.3]} 12. Qd1 {[%clk 0:10:05.8]} 12... fxe6
{[%clk 0:08:23.2]} 13. h5 {[%clk 0:10:06.6]} 13... gxh5 {[%clk 0:07:38.6]} 14.
Rxh5 {[%clk 0:10:01.6]} 14... Qe8 {[%clk 0:07:34]} 15. Rh4 {[%clk 0:09:59]}
15... Nc6 {[%clk 0:07:24.2]} 16. Bh6 {[%clk 0:09:57.2]} 16... Qg6 {[%clk
0:07:12.1]} 17. Bxg7 {[%clk 0:09:58.1]} 17... Qxg7 {[%clk 0:07:08]} 18. Qd2
{[%clk 0:09:56.6]} 18... Nf6 {[%clk 0:06:39]} 19. O-O-O {[%clk 0:09:51.2]} 19...
b4 {[%clk 0:06:36.8]} 20. Na4 {[%clk 0:09:51.1]} 20... c3 {[%clk 0:06:29.8]} 21.
bxc3 {[%clk 0:09:37.6]} 21... bxc3 {[%clk 0:06:29.4]} 22. Qxc3 {[%clk
0:09:38.8]} 22... Bd7 {[%clk 0:06:04.4]} 23. Nc5 {[%clk 0:09:37.8]} 23... Rfc8
{[%clk 0:05:46.8]} 24. Bc4 {[%clk 0:09:32.2]} 24... Kh8 {[%clk 0:05:19.7]} 25.
Rdh1 {[%clk 0:09:30.5]} 25... Be8 {[%clk 0:04:54.6]} 26. Nxe6 {[%clk 0:09:28.4]}
26... Qxg2 {[%clk 0:04:51.2]} 27. d5 {[%clk 0:09:25.8]} 27... Bg6 {[%clk
0:04:04.7]} 28. Nf4 {[%clk 0:09:25.3]} 28... Qxf2 {[%clk 0:03:28.5]} 29. Nxg6+
{[%clk 0:09:25.2]} 29... Kg7 {[%clk 0:03:28.3]} 30. Rxh7+ {[%clk 0:09:11.7]}
30... Kxg6 {[%clk 0:03:30.2]} 31. Bd3+ {[%clk 0:09:08]} 31... Ne4 {[%clk
0:03:32.1]} 32. Bxe4# {[%clk 0:09:09]} 1-0

[Event "GrandPrix_29.05"]
[Site "Chess.com"]
[Date "2020.05.29"]
[Round "7"]
[White "ftorodent"]
[Black "Olghita64"]
[Result "1-0"]
[WhiteElo "2131"]
[BlackElo "1974"]
[TimeControl "600+2"]
[EndTime "12:19:40 PDT"]
[Termination "ftorodent won by resignation"]

1. d4 {[%clk 0:10:01.9]} 1... d5 {[%clk 0:10:00.4]} 2. c4 {[%clk 0:10:02.4]}
2... c6 {[%clk 0:10:01.1]} 3. Nf3 {[%clk 0:10:02.7]} 3... Nf6 {[%clk 0:10:01.2]}
4. Nc3 {[%clk 0:10:03.6]} 4... dxc4 {[%clk 0:10:01.5]} 5. a4 {[%clk 0:10:04]}
5... Bf5 {[%clk 0:10:01.7]} 6. Ne5 {[%clk 0:10:04.1]} 6... Nbd7 {[%clk
0:09:51.2]} 7. Nxc4 {[%clk 0:10:03.8]} 7... Qc7 {[%clk 0:09:20.3]} 8. Bg5 {[%clk
0:10:02.5]} 8... e5 {[%clk 0:09:06.4]} 9. Bxf6 {[%clk 0:10:02.3]} 9... gxf6
{[%clk 0:09:06.4]} 10. e3 {[%clk 0:10:03.2]} 10... Nb6 {[%clk 0:08:50.6]} 11.
Qf3 {[%clk 0:09:50.2]} 11... Be6 {[%clk 0:07:07.7]} 12. Qxf6 {[%clk 0:09:32.3]}
12... Nxc4 {[%clk 0:07:00.7]} 13. Bxc4 {[%clk 0:09:23.2]} 13... Bxc4 {[%clk
0:07:00]} 14. Qxh8 {[%clk 0:09:23.8]} 14... O-O-O {[%clk 0:06:58.7]} 15. Qxe5
{[%clk 0:09:20.9]} 15... Qb6 {[%clk 0:06:42.7]} 16. Qf5+ {[%clk 0:09:02.2]}
16... Kb8 {[%clk 0:06:42.8]} 17. Qc2 {[%clk 0:09:02.4]} 17... c5 {[%clk
0:06:42]} 18. d5 {[%clk 0:08:55.9]} 18... Qb4 {[%clk 0:06:21]} 19. f3 {[%clk
0:08:11.8]} 19... Bxd5 {[%clk 0:05:43]} 20. O-O {[%clk 0:08:07.5]} 20... Bb3
{[%clk 0:05:36.4]} 21. Qe4 {[%clk 0:08:06.1]} 21... Bc4 {[%clk 0:05:20.6]} 22.
Rfd1 {[%clk 0:08:00.5]} 22... Rc8 {[%clk 0:05:19.5]} 23. Qe5+ {[%clk 0:07:52.2]}
23... Ka8 {[%clk 0:05:19.4]} 24. Qc7 {[%clk 0:07:50.8]} 24... Be6 {[%clk
0:04:12.1]} 25. Rd8 {[%clk 0:07:50.6]} 1-0

[Event "GrandPrix_29.05"]
[Site "Chess.com"]
[Date "2020.05.29"]
[Round "7"]
[White "titan013"]
[Black "VojtechPlat"]
[Result "0-1"]
[WhiteElo "2121"]
[BlackElo "2316"]
[TimeControl "600+2"]
[EndTime "12:20:25 PDT"]
[Termination "VojtechPlat won by resignation"]

1. e4 {[%clk 0:10:01.9]} 1... d6 {[%clk 0:09:57.1]} 2. d4 {[%clk 0:10:01.3]}
2... Nf6 {[%clk 0:09:58]} 3. Nc3 {[%clk 0:10:01.9]} 3... e5 {[%clk 0:09:59.3]}
4. Nf3 {[%clk 0:10:03.4]} 4... Nbd7 {[%clk 0:10:00]} 5. Bc4 {[%clk 0:10:04.5]}
5... Be7 {[%clk 0:09:58.1]} 6. O-O {[%clk 0:10:02.7]} 6... O-O {[%clk
0:09:58.8]} 7. Re1 {[%clk 0:10:03.6]} 7... c6 {[%clk 0:09:58.9]} 8. a4 {[%clk
0:10:04.4]} 8... a5 {[%clk 0:10:00.5]} 9. b3 {[%clk 0:10:01.6]} 9... Qc7 {[%clk
0:10:00.9]} 10. Ba3 {[%clk 0:10:01]} 10... Nb6 {[%clk 0:10:00.8]} 11. Bf1 {[%clk
0:09:45.9]} 11... Bg4 {[%clk 0:10:01.4]} 12. dxe5 {[%clk 0:09:47.1]} 12... dxe5
{[%clk 0:10:02]} 13. Bxe7 {[%clk 0:09:48.1]} 13... Qxe7 {[%clk 0:10:03.6]} 14.
h3 {[%clk 0:09:49.2]} 14... Bxf3 {[%clk 0:10:03.1]} 15. Qxf3 {[%clk 0:09:50.1]}
15... Qc5 {[%clk 0:10:02.7]} 16. Qe3 {[%clk 0:09:42.7]} 16... Qxe3 {[%clk
0:10:03.3]} 17. Rxe3 {[%clk 0:09:44.3]} 17... Rfd8 {[%clk 0:10:04.7]} 18. Rb1
{[%clk 0:09:40.1]} 18... Nbd7 {[%clk 0:09:59.7]} 19. Rd3 {[%clk 0:09:03.2]}
19... Nc5 {[%clk 0:10:00.2]} 20. Rxd8+ {[%clk 0:09:03.9]} 20... Rxd8 {[%clk
0:10:01.8]} 21. f3 {[%clk 0:09:04.8]} 21... Rd2 {[%clk 0:09:58.6]} 22. Rc1
{[%clk 0:09:05.2]} 22... Kf8 {[%clk 0:09:56.7]} 23. Be2 {[%clk 0:09:03.6]} 23...
Nh5 {[%clk 0:09:53]} 24. Kf2 {[%clk 0:09:01.5]} 24... Nf4 {[%clk 0:09:53.9]} 25.
Ke3 {[%clk 0:08:52.9]} 25... Rd6 {[%clk 0:09:39]} 26. g3 {[%clk 0:08:39.8]}
26... Nxh3 {[%clk 0:09:32.2]} 27. Rh1 {[%clk 0:08:32.5]} 27... Ng5 {[%clk
0:09:32.8]} 28. Rh5 {[%clk 0:06:57.4]} 28... h6 {[%clk 0:09:33.2]} 29. f4 {[%clk
0:06:58]} 29... exf4+ {[%clk 0:09:32.8]} 30. gxf4 {[%clk 0:06:59.2]} 30... Nge6
{[%clk 0:09:33.1]} 31. Bg4 {[%clk 0:05:24.1]} 31... g5 {[%clk 0:09:24.6]} 32.
Bxe6 {[%clk 0:04:55.9]} 32... Nxe6 {[%clk 0:09:19.4]} 33. f5 {[%clk 0:04:40.4]}
33... Nd4 {[%clk 0:08:46.7]} 34. Rh2 {[%clk 0:04:38.9]} 34... Kg7 {[%clk
0:08:25.7]} 35. e5 {[%clk 0:03:50.7]} 35... Nxf5+ {[%clk 0:08:25.8]} 36. Ke4
{[%clk 0:03:51.3]} 36... Rd4+ {[%clk 0:08:26.7]} 37. Kf3 {[%clk 0:03:49.3]}
37... g4+ {[%clk 0:08:25.6]} 38. Ke2 {[%clk 0:03:48.2]} 38... g3 {[%clk
0:08:26.2]} 39. Rg2 {[%clk 0:03:47.4]} 39... h5 {[%clk 0:08:26.8]} 0-1